fUSD/lending_fUSD_20250930
["ID","MTS","AMOUNT","RATE_DAILY","PERIOD"]
[388508056,1759223441815,-1404.83,0.00019494,2]
[388508057,1759223441824,-500.0,0.00019494,2]
[388508058,1759223441833,-500.0,0.00019494,2]
[388508059,1759223441843,-500.0,0.00019494,2]
[388508060,1759223441853,-500.0,0.00019494,2]
[388508061,1759223441862,-500.0,0.00019494,2]
[388508062,1759223442025,-500.0,0.00019494,2]
[388508063,1759223442035,-1049.91,0.00019494,2]
[388508064,1759223442045,-934.41,0.00019494,2]
[388508065,1759223442055,-1122.05,0.00019494,2]
[388508066,1759223442065,-500.0,0.00019494,2]
[388508067,1759223442074,-500.0,0.00019494,2]
[388508068,1759223442083,-3906.93,0.00019494,2]
[388508069,1759223442093,-500.0,0.00019494,2]
[388508070,1759223442102,-500.0,0.00019494,2]
[388508071,1759223442112,-857.44,0.00019494,2]
[388508072,1759223442121,-1457.01,0.00019494,2]
[388508073,1759223442131,-794.26,0.00019494,2]
[388508074,1759223442141,-500.0,0.00019494,2]
[388508075,1759223442151,-500.0,0.00019494,2]
[388508076,1759223442161,-500.0,0.00019494,2]
[388508077,1759223442170,-4222.48,0.00019494,2]
[388508078,1759223442179,-500.0,0.00019494,2]
[388508079,1759223442189,-500.0,0.00019494,2]
[388508080,1759223442202,-500.0,0.00019494,2]
[388508081,1759223442211,-500.0,0.00019494,2]
[388508082,1759223442220,-500.0,0.00019494,2]
[388508083,1759223442230,-2666.53,0.00019494,2]
[388508084,1759223442239,-1435.22,0.00019494,2]
[388508085,1759223442248,-952.22,0.00019494,2]
[388508086,1759223442257,-500.0,0.00019494,2]
[388508087,1759223442266,-852.16,0.00019494,2]
[388508088,1759223442275,-500.0,0.00019494,2]
[388508089,1759223442286,-2489.79,0.00019494,2]
[388508090,1759223442294,-720.2,0.00019494,2]
[388508091,1759223442303,-500.0,0.00019494,2]
[388508092,1759223442312,-500.0,0.00019494,2]
[388508093,1759223442321,-500.0,0.00019494,2]
[388508094,1759223442330,-500.0,0.00019494,2]
[388508095,1759223442339,-500.0,0.00019494,2]
[388508096,1759223442348,-932.22,0.00019494,2]
[388508097,1759223442357,-500.0,0.00019494,2]
[388508098,1759223442366,-500.0,0.00019494,2]
[388508099,1759223442375,-2339.36,0.00019494,2]
[388508100,1759223442383,-867.6,0.00019494,2]
[388508101,1759223442392,-500.0,0.00019494,2]
[388508102,1759223442401,-500.0,0.00019494,2]
[388508103,1759223442410,-500.0,0.00019494,2]
[388508104,1759223442418,-724.45,0.00019494,2]
[388508105,1759223442427,-5303.22,0.00019494,2]
[388508106,1759223442436,-2611.31,0.00019494,2]
[388508107,1759223442444,-509.78,0.00019494,2]
[388508108,1759223442455,-500.0,0.00019494,2]
[388508109,1759223442464,-500.0,0.00019494,2]
[388508110,1759223442472,-2508.92,0.00019494,2]
[388508111,1759223442481,-814.53,0.00019494,2]
[388508112,1759223442491,-500.0,0.00019494,2]
[388508113,1759223442499,-500.0,0.00019494,2]
[388508114,1759223442508,-500.0,0.00019494,2]
[388508115,1759223442517,-3845.21,0.00019494,2]
[388508116,1759223442525,-500.0,0.00019494,2]
[388508117,1759223442534,-500.0,0.00019494,2]
[388508119,1759223442543,-2540.25,0.00019494,2]
[388508120,1759223442552,-500.0,0.00019494,2]
[388508121,1759223442562,-1651.67,0.00019494,2]
[388508122,1759223442571,-3860.35,0.00019494,2]
[388508123,1759223442579,-500.0,0.00019494,2]
[388508124,1759223442589,-1465.66,0.00019494,2]
[388508125,1759223442597,-230.93467229,0.00019494,2]
[388508126,1759223442607,-500.0,0.00019494,2]
[388508127,1759223442620,-4668.05,0.00019494,2]
[388508128,1759223442630,-4244.41,0.00019494,2]
[388508129,1759223442639,-500.0,0.00019494,2]
[388508130,1759223442648,-609.64600168,0.00019494,2]
[388508132,1759223442658,-500.0,0.00019494,2]
[388508133,1759223442667,-500.0,0.00019494,2]
[388508135,1759223442676,-2679.12,0.00019494,2]
[388508136,1759223442686,-500.0,0.00019494,2]
[388508137,1759223442695,-500.0,0.00019494,2]
[388508138,1759223442706,-898.87,0.00019494,2]
[388508140,1759223442716,-500.0,0.00019494,2]
[388508141,1759223442725,-500.0,0.00019494,2]
[388508142,1759223442734,-500.0,0.00019494,2]
[388508143,1759223442744,-8056.57,0.00019494,2]
[388508144,1759223442753,-500.0,0.00019494,2]
[388508145,1759223442763,-859.28,0.00019494,2]
[388508146,1759223442773,-500.0,0.00019494,2]
[388508147,1759223442782,-1077.64,0.00019494,2]
[388508148,1759223442791,-500.0,0.00019494,2]
[388508149,1759223442801,-4288.21,0.00019494,2]
[388508150,1759223442810,-2666.4,0.00019494,2]
[388508151,1759223442819,-500.0,0.00019494,2]
[388508152,1759223442828,-13196.49,0.00019494,2]
[388508153,1759223442837,-814.79,0.00019494,2]
[388508154,1759223442847,-500.0,0.00019494,2]
[388508155,1759223442856,-500.0,0.00019494,2]
[388508156,1759223442865,-3517.92,0.00019494,2]
[388508157,1759223442874,-3926.92,0.00019494,2]
[388508158,1759223442883,-871.8,0.00019494,2]
[388508159,1759223442892,-500.0,0.00019494,2]
[388508160,1759223442901,-718.96,0.00019494,2]
[388508161,1759223442910,-3708.65,0.00019494,2]
[388508162,1759223442919,-500.0,0.00019494,2]
[388508163,1759223442928,-780.93,0.00019494,2]
[388508164,1759223442937,-500.0,0.00019494,2]
[388508165,1759223442946,-866.77,0.00019494,2]
[388508166,1759223442956,-500.0,0.00019494,2]
[388508167,1759223442965,-500.0,0.00019494,2]
[388508168,1759223442974,-500.0,0.00019494,2]
[388508169,1759223442983,-500.0,0.00019494,2]
[388508170,1759223442992,-623.22,0.00019494,2]
[388508171,1759223443000,-500.0,0.00019494,2]
[388508172,1759223443010,-2738.39,0.00019494,2]
[388508173,1759223443020,-504.68,0.00019494,2]
[388508174,1759223443029,-5717.81,0.00019494,2]
[388508175,1759223443038,-1812.13,0.00019494,2]
[388508176,1759223443047,-455.31446319,0.00019494,2]
[388508177,1759223443056,-2627.23,0.00019494,2]
[388508178,1759223443065,-213.11363847,0.00019494,2]
[388508179,1759223443074,-2565.19,0.00019494,2]
[388508180,1759223443082,-500.0,0.00019494,2]
[388508181,1759223443091,-500.0,0.00019494,2]
[388508182,1759223443101,-500.0,0.00019494,2]
[388508183,1759223443110,-5535.03,0.00019494,2]
[388508184,1759223443119,-576.55,0.00019494,2]
[388508185,1759223443127,-500.0,0.00019494,2]
[388508187,1759223443138,-3334.55,0.00019494,2]
[388508189,1759223443148,-221.28591943,0.00019494,2]
[388508190,1759223443157,-500.0,0.00019494,2]
[388508192,1759223443166,-3866.28,0.00019494,2]
[388508194,1759223443175,-806.44,0.00019494,2]
[388508196,1759223443184,-500.0,0.00019494,2]
[388508198,1759223443193,-587.5,0.00019494,2]
[388508200,1759223443203,-500.0,0.00019494,2]
[388508202,1759223443211,-11275.59,0.00019494,2]
[388508204,1759223443220,-500.0,0.00019494,2]
[388508205,1759223443229,-1376.39,0.00019494,2]
[388508207,1759223443238,-3362.43,0.00019494,2]
[388508209,1759223443247,-500.0,0.00019494,2]
[388508211,1759223443255,-2067.77,0.00019494,2]
[388508212,1759223443264,-515.8,0.00019494,2]
[388508213,1759223443273,-938.88,0.00019494,2]
[388508214,1759223443282,-500.0,0.00019494,2]
[388508215,1759223443291,-4579.65,0.00019494,2]
[388508216,1759223443300,-4050.06,0.00019494,2]
[388508217,1759223443308,-662.75,0.00019494,2]
[388508218,1759223443317,-654.42,0.00019494,2]
[388508219,1759223443326,-1652.61,0.00019494,2]
[388508220,1759223443335,-4207.05,0.00019494,2]
[388508221,1759223443343,-497.1256375,0.00019494,2]
[388508222,1759223443353,-5097.59,0.00019494,2]
[388508223,1759223443362,-2676.87,0.00019494,2]
[388508224,1759223443373,-652.63,0.00019494,2]
[388508225,1759223443382,-500.0,0.00019494,2]
[388508226,1759223443391,-500.0,0.00019494,2]
[388508227,1759223443401,-3213.07,0.00019494,2]
[388508228,1759223443409,-1444.47,0.00019494,2]
[388508229,1759223443419,-4021.03,0.00019494,2]
[388508230,1759223443428,-500.0,0.00019494,2]
[388508231,1759223443437,-500.0,0.00019494,2]
[388508232,1759223443447,-500.0,0.00019494,2]
[388508233,1759223443457,-500.0,0.00019494,2]
[388508234,1759223443466,-5598.02,0.00019494,2]
[388508235,1759223443476,-500.0,0.00019494,2]
[388508236,1759223443486,-3153.34,0.00019494,2]
[388508237,1759223443495,-5660.19,0.00019494,2]
[388508238,1759223443505,-500.0,0.00019494,2]
[388508239,1759223443514,-601.64,0.00019494,2]
[388508240,1759223443524,-884.2,0.00019494,2]
[388508241,1759223443534,-1578.65,0.00019494,2]
[388508242,1759223443543,-3074.32,0.00019494,2]
[388508243,1759223443552,-5455.24,0.00019494,2]
[388508244,1759223443562,-500.0,0.00019494,2]
[388508245,1759223443572,-300.82285741,0.00019494,2]
[388508246,1759223443581,-5309.56,0.00019494,2]
[388508247,1759223443591,-500.0,0.00019494,2]
[388508248,1759223443601,-500.0,0.00019494,2]
[388508249,1759223443611,-2208.9,0.00019494,2]
[388508250,1759223443626,-3660.63,0.00019494,2]
[388508251,1759223443636,-615.55,0.00019494,2]
[388508252,1759223443647,-257.59452018,0.00019494,2]
[388508253,1759223443658,-500.0,0.00019494,2]
[388508254,1759223443667,-500.0,0.00019494,2]
[388508255,1759223443676,-845.79,0.00019494,2]
[388508256,1759223443686,-3011.73,0.00019494,2]
[388508257,1759223443696,-2462.99,0.00019494,2]
[388508258,1759223443706,-500.0,0.00019494,2]
[388508259,1759223443715,-500.0,0.00019494,2]
[388508260,1759223443724,-13538.13,0.00019494,2]
[388508261,1759223443733,-500.0,0.00019494,2]
[388508262,1759223443743,-4689.94,0.00019494,2]
[388508263,1759223443752,-500.0,0.00019494,2]
[388508264,1759223443761,-1691.66,0.00019494,2]
[388508265,1759223443770,-13899.61,0.00019494,2]
[388508266,1759223443779,-2777.0,0.00019494,2]
[388508267,1759223443788,-607.0209675,0.00019494,2]
[388508268,1759223443797,-6317.76,0.00019494,2]
[388508269,1759223443806,-500.0,0.00019494,2]
[388508270,1759223443815,-6414.17,0.00019494,2]
[388508271,1759223443824,-687.68,0.00019494,2]
[388508272,1759223443833,-625.27,0.00019494,2]
[388508273,1759223443842,-500.0,0.00019494,2]
[388508274,1759223443851,-4941.58,0.00019494,2]
[388508275,1759223443861,-500.0,0.00019494,2]
[388508276,1759223443870,-511.00185349,0.00019494,2]
[388508277,1759223443878,-272.66166338,0.00019494,2]
[388508278,1759223443888,-3151.68,0.00019494,2]
[388508279,1759223443897,-1325.53,0.00019494,2]
[388508280,1759223443906,-500.0,0.00019494,2]
[388508281,1759223443915,-500.0,0.00019494,2]
[388508282,1759223443925,-500.0,0.00019494,2]
[388508283,1759223443934,-735.23,0.00019494,2]
[388508284,1759223443943,-1230.3,0.00019494,2]
[388508285,1759223443952,-500.0,0.00019494,2]
[388508286,1759223443961,-3100.94,0.00019494,2]
[388508287,1759223443971,-1466.89,0.00019494,2]
[388508288,1759223443980,-18474.68,0.00019494,2]
[388508289,1759223443990,-5190.58,0.00019494,2]
[388508290,1759223443999,-2570.11,0.00019494,2]
[388508291,1759223444008,-500.0,0.00019494,2]
[388508292,1759223444017,-500.0,0.00019494,2]
[388508293,1759223444026,-723.48,0.00019494,2]
[388508294,1759223444036,-11728.64,0.00019494,2]
[388508295,1759223444045,-500.0,0.00019494,2]
[388508296,1759223444054,-500.0,0.00019494,2]
[388508297,1759223444064,-310.05257804,0.00019494,2]
[388508298,1759223444074,-5293.38,0.00019494,2]
[388508299,1759223444083,-6929.84,0.00019494,2]
[388508300,1759223444093,-454.57103204,0.00019494,2]
[388508301,1759223444102,-1684.05,0.00019494,2]
[388508302,1759223444111,-900.84,0.00019494,2]
[388508303,1759223444121,-500.0,0.00019494,2]
[388508304,1759223444131,-500.0,0.00019494,2]
[388508305,1759223444140,-500.0,0.00019494,2]
[388508306,1759223444150,-500.0,0.00019494,2]
[388508307,1759223444159,-6410.87,0.00019494,2]
[388508308,1759223444168,-7923.2,0.00019494,2]
[388508309,1759223444178,-500.0,0.00019494,2]
[388508310,1759223444188,-500.0,0.00019494,2]
[388508311,1759223444198,-4836.84,0.00019494,2]
[388508312,1759223444207,-500.0,0.00019494,2]
[388508313,1759223444217,-998.35,0.00019494,2]
[388508314,1759223444227,-500.0,0.00019494,2]
[388508315,1759223444236,-636.5,0.00019494,2]
[388508316,1759223444245,-500.0,0.00019494,2]
[388508317,1759223444254,-500.0,0.00019494,2]
[388508318,1759223444263,-500.0,0.00019494,2]
[388508319,1759223444272,-550.76,0.00019494,2]
[388508320,1759223444288,-500.0,0.00019494,2]
[388508321,1759223444297,-1196.46,0.00019494,2]
[388508322,1759223444307,-3672.05,0.00019494,2]
[388508323,1759223444317,-500.0,0.00019494,2]
[388508324,1759223444326,-3367.41,0.00019494,2]
[388508325,1759223444336,-500.0,0.00019494,2]
[388508326,1759223444345,-2829.66,0.00019494,2]
[388508327,1759223444355,-500.0,0.00019494,2]
[388508328,1759223444364,-500.0,0.00019494,2]
[388508329,1759223444374,-3571.56,0.00019494,2]
[388508330,1759223444384,-679.07,0.00019494,2]
[388508331,1759223444393,-8338.07,0.00019494,2]
[388508332,1759223444403,-1520.94,0.00019494,2]
[388508333,1759223444412,-500.0,0.00019494,2]
[388508334,1759223444422,-768.36,0.00019494,2]
[388508335,1759223444431,-3800.55,0.00019494,2]
[388508336,1759223444441,-500.0,0.00019494,2]
[388508337,1759223444451,-846.24,0.00019494,2]
[388508338,1759223444460,-500.0,0.00019494,2]
[388508339,1759223444469,-5237.52,0.00019494,2]
[388508340,1759223444480,-4058.59,0.00019494,2]
[388508341,1759223444490,-500.0,0.00019494,2]
[388508342,1759223444500,-500.0,0.00019494,2]
[388508343,1759223444510,-500.0,0.00019494,2]
[388508344,1759223444520,-548.85,0.00019494,2]
[388508345,1759223444530,-1490.16,0.00019494,2]
[388508346,1759223444540,-552.45,0.00019494,2]
[388508347,1759223444550,-8478.91,0.00019494,2]
[388508348,1759223444560,-500.0,0.00019494,2]
[388508349,1759223444570,-1674.16,0.00019494,2]
[388508350,1759223444580,-2669.27,0.00019494,2]
[388508351,1759223444590,-3678.83,0.00019494,2]
[388508353,1759223444600,-2552.02,0.00019494,2]
[388508354,1759223444610,-500.0,0.00019494,2]
[388508355,1759223444623,-500.0,0.00019494,2]
[388508356,1759223444632,-1444.32,0.00019494,2]
[388508357,1759223444642,-10310.09,0.00019494,2]
[388508358,1759223444652,-7830.23,0.00019494,2]
[388508359,1759223444662,-4102.1,0.00019494,2]
[388508360,1759223444671,-1265.74,0.00019494,2]
[388508361,1759223444688,-13357.48,0.00019494,2]
[388508362,1759223444699,-500.0,0.00019494,2]
[388508363,1759223444710,-500.0,0.00019494,2]
[388508364,1759223444720,-635.52,0.00019494,2]
[388508365,1759223444730,-500.0,0.00019494,2]
[388508366,1759223444740,-500.0,0.00019494,2]
[388508367,1759223444751,-24356.58,0.00019494,2]
[388508368,1759223444761,-1872.18,0.00019494,2]
[388508369,1759223444771,-859.84,0.00019494,2]
[388508370,1759223444781,-500.0,0.00019494,2]
[388508371,1759223444791,-5338.2,0.00019494,2]
[388508372,1759223444801,-3303.87,0.00019494,2]
[388508373,1759223444811,-500.0,0.00019494,2]
[388508374,1759223444820,-1061.31,0.00019494,2]
[388508375,1759223444830,-741.67,0.00019494,2]
[388508376,1759223444840,-2858.54,0.00019494,2]
[388508377,1759223444850,-500.0,0.00019494,2]
[388508378,1759223444859,-10000.0,0.00019494,9]
[388508379,1759223444870,-10000.0,0.00019494,9]
[388508380,1759223444880,-2350.35300243,0.00019494,9]
[388508381,1759223444890,-500.0,0.00019494,2]
[388508382,1759223444900,-15313.29,0.00019494,2]
[388508383,1759223444910,-4327.4,0.00019494,2]
[388508384,1759223444919,-500.0,0.00019494,2]
[388508385,1759223444929,-500.0,0.00019494,2]
[388508386,1759223444939,-3405.92,0.00019494,2]
[388508387,1759223444949,-4287.39,0.00019494,2]
[388508388,1759223444961,-1437.51,0.00019494,2]
[388508389,1759223444970,-500.0,0.00019494,2]
[388508390,1759223444980,-500.0,0.00019494,2]
[388508391,1759223444990,-1274.03,0.00019494,2]
[388508392,1759223445000,-834.85,0.00019494,2]
[388508393,1759223445010,-9581.1,0.00019494,2]
[388508394,1759223445020,-833.2,0.00019494,2]
[388508395,1759223445030,-500.0,0.00019494,2]
[388508396,1759223445040,-724.93,0.00019494,2]
[388508397,1759223445050,-4617.18,0.00019494,2]
[388508398,1759223445060,-500.0,0.00019494,2]
[388508399,1759223445070,-500.0,0.00019494,2]
[388508400,1759223445086,-7453.25,0.00019494,2]
[388508401,1759223445096,-500.0,0.00019494,2]
[388508402,1759223445106,-1761.32,0.00019494,2]
[388508403,1759223445116,-796.71,0.00019495,2]
[388508404,1759223445125,-625.97,0.00019495,2]
[388508405,1759223445135,-500.0,0.00019495,2]
[388508406,1759223445145,-500.0,0.00019495,2]
[388508407,1759223445155,-500.0,0.00019495,2]
[388508408,1759223445165,-500.0,0.00019495,2]
[388508409,1759223445175,-2922.51,0.00019495,2]
[388508410,1759223445185,-3328.26,0.00019495,2]
[388508411,1759223445195,-497.2,0.00019495,2]
[388508412,1759223445206,-1499.04,0.00019495,2]
[388508413,1759223445217,-5114.38,0.00019495,2]
[388508414,1759223445228,-748.69,0.00019495,2]
[388508415,1759223445239,-3549.39,0.00019495,2]
[388508416,1759223445248,-4594.91,0.00019495,2]
[388508417,1759223445258,-933.88,0.00019495,2]
[388508418,1759223445268,-2169.96,0.00019495,2]
[388508419,1759223445278,-2073.0,0.00019495,2]
[388508420,1759223445288,-3687.54,0.00019495,2]
[388508421,1759223445298,-3955.72,0.00019495,2]
[388508422,1759223445308,-4361.68,0.00019495,2]
[388508423,1759223445317,-3475.05,0.00019495,2]
[388508424,1759223445327,-3238.0,0.00019495,2]
[388508425,1759223445337,-2506.21,0.00019495,2]
[388508426,1759223445347,-585.24,0.00019495,2]
[388508427,1759223445357,-1043.14,0.00019495,2]
[388508428,1759223445367,-2768.72,0.00019495,2]
[388508429,1759223445377,-1747.81,0.00019495,2]
[388508430,1759223445386,-3379.93,0.00019495,2]
[388508431,1759223445395,-904.27,0.00019495,2]
[388508432,1759223445404,-3766.19,0.00019495,2]
[388508433,1759223445413,-605.09,0.00019495,2]
[388508434,1759223445423,-5411.23,0.00019495,2]
[388508435,1759223445433,-3600.41,0.00019495,2]
[388508436,1759223445442,-4547.8,0.00019495,2]
[388508437,1759223445454,-3970.12,0.00019495,2]
[388508438,1759223445468,-2099.85,0.00019495,2]
[388508439,1759223445478,-3512.92,0.00019495,2]
[388508441,1759223445488,-1905.16,0.00019495,2]
[388508442,1759223445498,-3974.94,0.00019495,2]
[388508443,1759223445507,-851.67,0.00019495,2]
[388508444,1759223445517,-3040.1,0.00019495,2]
[388508445,1759223445527,-1889.53,0.00019495,2]
[388508446,1759223445537,-1871.65,0.00019495,2]
[388508448,1759223445547,-500.0,0.00019495,2]
[388508450,1759223445557,-3564.9,0.00019495,2]
[388508451,1759223445567,-4473.24,0.00019495,2]
[388508452,1759223445577,-500.0,0.00019495,2]
[388508453,1759223445587,-1961.85,0.00019495,2]
[388508454,1759223445597,-2187.06,0.00019495,2]
[388508455,1759223445607,-4129.88,0.00019495,2]
[388508456,1759223445619,-3309.32,0.00019495,2]
[388508457,1759223445630,-4577.83,0.00019495,2]
[388508458,1759223445640,-3145.15,0.00019495,2]
[388508459,1759223445650,-2117.21,0.00019495,2]
[388508460,1759223445660,-4008.89,0.00019495,2]
[388508461,1759223445670,-4377.48,0.00019495,2]
[388508462,1759223445680,-3212.95,0.00019495,2]
[388508463,1759223445690,-2342.01,0.00019495,2]
[388508464,1759223445704,-4446.25,0.00019495,2]
[388508465,1759223445714,-5214.62,0.00019495,2]
[388508466,1759223445724,-2549.76,0.00019495,2]
[388508467,1759223445734,-2145.35,0.00019495,2]
[388508468,1759223445744,-500.0,0.00019495,2]
[388508469,1759223445754,-2908.34,0.00019495,2]
[388508470,1759223445764,-5233.54,0.00019495,2]
[388508471,1759223445774,-1542.82,0.00019495,2]
[388508472,1759223445784,-1130.66,0.00019495,2]
[388508473,1759223445794,-5032.73,0.00019495,2]
[388508474,1759223445804,-3189.41,0.00019495,2]
[388508475,1759223445814,-2789.22,0.00019495,2]
[388508476,1759223445824,-5173.58,0.00019495,2]
[388508477,1759223445833,-1788.55,0.00019495,2]
[388508478,1759223445843,-967.53,0.00019495,2]
[388508479,1759223445853,-1114.42,0.00019495,2]
[388508480,1759223445864,-936.99,0.00019495,2]
[388508481,1759223445874,-500.0,0.00019495,2]
[388508482,1759223445884,-3453.84,0.00019495,2]
[388508483,1759223445894,-1741.11,0.00019495,2]
[388508484,1759223445904,-1334.22,0.00019495,2]
[388508485,1759223445915,-4302.92,0.00019495,2]
[388508486,1759223445925,-4736.48,0.00019495,2]
[388508487,1759223445936,-500.0,0.00019495,2]
[388508488,1759223445947,-985.35,0.00019495,2]
[388508489,1759223445957,-822.66,0.00019495,2]
[388508490,1759223445968,-2578.17,0.00019495,2]
[388508491,1759223445978,-1701.75,0.00019495,2]
[388508492,1759223445988,-563.55253336,0.00019495,2]
[388508493,1759223445998,-3564.66,0.00019495,2]
[388508494,1759223446009,-500.0,0.00019495,2]
[388508495,1759223446019,-3862.4,0.00019495,2]
[388508496,1759223446029,-794.52,0.00019495,2]
[388508497,1759223446039,-2665.84,0.00019495,2]
[388508498,1759223446049,-500.0,0.00019495,2]
[388508499,1759223446059,-1696.33,0.00019495,2]
[388508500,1759223446069,-856.27,0.00019495,2]
[388508501,1759223446079,-3025.93,0.00019495,2]
[388508502,1759223446089,-628.76,0.00019495,2]
[388508503,1759223446099,-4652.12,0.00019495,2]
[388508504,1759223446109,-500.0,0.00019495,2]
[388508505,1759223446120,-3270.99,0.00019495,2]
[388508506,1759223446130,-1060.56,0.00019495,2]
[388508507,1759223446140,-2204.9,0.00019495,2]
[388508511,1759223446433,-3104.56,0.00019495,2]
[388508512,1759223446459,-500.0,0.00019495,2]
[388508513,1759223446468,-814.7,0.00019495,2]
[388508514,1759223446478,-3563.59,0.00019495,2]
[388508515,1759223446488,-3208.87,0.00019495,2]
[388508516,1759223446498,-3325.79,0.00019495,2]
[388508517,1759223446507,-3968.26,0.00019495,2]
[388508518,1759223446517,-2398.14,0.00019495,2]
[388508519,1759223446527,-500.0,0.00019495,2]
[388508520,1759223446536,-895.16,0.00019495,2]
[388508521,1759223446546,-1030.38,0.00019495,2]
[388508522,1759223446556,-3512.44,0.00019495,2]
[388508523,1759223446565,-1481.73,0.00019495,2]
[388508524,1759223446575,-5286.74,0.00019495,2]
[388508525,1759223446584,-3923.69,0.00019495,2]
[388508526,1759223446594,-500.0,0.00019495,2]
[388508527,1759223446604,-5027.48,0.00019495,2]
[388508528,1759223446613,-4673.81,0.00019495,2]
[388508529,1759223446627,-5522.15,0.00019495,2]
[388508530,1759223446637,-5241.82,0.00019495,2]
[388508531,1759223446647,-500.0,0.00019495,2]
[388508532,1759223446657,-2049.27,0.00019495,2]
[388508533,1759223446667,-3579.55,0.00019495,2]
[388508534,1759223446676,-1243.47,0.00019496,2]
[388508535,1759223446686,-500.0,0.00019496,2]
[388508536,1759223446696,-500.0,0.00019496,2]
[388508537,1759223446705,-1529.14,0.00019496,2]
[388508538,1759223446715,-1238.87,0.00019496,2]
[388508539,1759223446724,-500.0,0.00019496,2]
[388508540,1759223446735,-1763.38,0.00019496,2]
[388508541,1759223446745,-877.55,0.00019496,2]
[388508542,1759223446756,-500.0,0.00019496,2]
[388508543,1759223446766,-500.0,0.00019496,2]
[388508544,1759223446776,-852.98,0.00019496,2]
[388508545,1759223446787,-500.0,0.00019496,2]
[388508546,1759223446798,-576.21,0.00019496,2]
[388508547,1759223446807,-500.0,0.00019496,2]
[388508548,1759223446817,-606.61,0.00019496,2]
[388508549,1759223446827,-1213.65,0.00019496,2]
[388508550,1759223446837,-1707.17,0.00019496,2]
[388508551,1759223446846,-884.39,0.00019496,2]
[388508552,1759223446856,-500.0,0.00019496,2]
[388508553,1759223446866,-500.0,0.00019496,2]
[388508554,1759223446875,-500.0,0.00019496,2]
[388508555,1759223446885,-2427.17,0.00019496,2]
[388508556,1759223446894,-1279.96,0.00019496,2]
[388508557,1759223446904,-500.0,0.00019496,2]
[388508558,1759223446913,-500.0,0.00019496,2]
[388508559,1759223446922,-500.0,0.00019496,2]
[388508560,1759223446932,-569.15,0.00019496,2]
[388508561,1759223446942,-300.49880326,0.00019496,2]
[388508562,1759223446952,-500.0,0.00019496,2]
[388508563,1759223446962,-1884.43,0.00019496,2]
[388508564,1759223446972,-500.0,0.00019496,2]
[388508565,1759223446982,-500.0,0.00019496,2]
[388508566,1759223446992,-655.91,0.00019496,2]
[388508567,1759223447001,-653.67,0.00019496,2]
[388508568,1759223447011,-500.0,0.00019496,2]
[388508569,1759223447020,-500.0,0.00019496,2]
[388508570,1759223447030,-1135.11,0.00019496,2]
[388508571,1759223447039,-500.0,0.00019496,2]
[388508572,1759223447049,-1184.8,0.00019496,2]
[388508573,1759223447059,-773.68,0.00019496,2]
[388508574,1759223447068,-771.21,0.00019496,2]
[388508575,1759223447077,-500.0,0.00019496,2]
[388508576,1759223447087,-860.56,0.00019496,2]
[388508577,1759223447096,-500.0,0.00019496,2]
[388508578,1759223447106,-675.7,0.00019496,2]